Workbook

Sheet 単純回帰
C1: ｘ | D1: ｙ
B2: 1 | C2: 40 | D2: 32
B3: 2 | C3: 30 | D3: 24
B4: 3 | C4: 50 | D4: 38
B5: 4 | C5: 45 | D5: 31
B6: 5 | C6: 35 | D6: 25

Sheet 手計算
C1: ｘ | D1: ｙ | E1: ｘｙ | F1: ｘ＾２ | G1: ｙ＾２
B2: 1 | C2: 40 | D2: 32 | E2: =C2*D2 -> 1280 | F2: =C2^2 -> 1600 | G2: =D2^2 -> 1024
B3: 2 | C3: 30 | D3: 24 | E3: =C3*D3 -> 720 | F3: =C3^2 -> 900 | G3: =D3^2 -> 576
B4: 3 | C4: 50 | D4: 38 | E4: 1900 | F4: 2500 | G4: 1444
B5: 4 | C5: 45 | D5: 31 | E5: 1395 | F5: 2025 | G5: 961
B6: 5 | C6: 35 | D6: 25 | E6: 875 | F6: 1225 | G6: 625
B7: 合計 | C7: =SUM(C2:C6) -> 200 | D7: =SUM(D2:D6) -> 150 | E7: 6170 | F7: 8250 | G7: 4630

Sheet Sheet6
B1: 所得 | C1: 消費 | D1: （１）ｘｙ | E1: （１）ｘ＾２ | F1: （１）ｙ＾２ | G1: （４）y_h(予測値） | H1: （5）u_h(残さ） | I1: y_h＾２(予測値） | J1: y_h＾２(予測値）
A2: 1 | B2: 40 | C2: 32 | D2: =B2*C2 -> 1280 | E2: =B2^2 -> 1600 | F2: =C2^2 -> 1024 | G2: =$E$12+$E$11*B2 -> 30 | H2: =C2-G2 -> 2 | I2: =G2^2 -> 900 | J2: =H2^2 -> 4
A3: 2 | B3: 30 | C3: 24 | D3: =B3*C3 -> 720 | E3: =B3^2 -> 900 | F3: 576 | G3: =$E$12+$E$11*B3 -> 23.2 | H3: =C3-G3 -> 0.8 | I3: =G3^2 -> 538.24 | J3: =H3^2 -> 0.64
A4: 3 | B4: 50 | C4: 38 | D4: 1900 | E4: 2500 | F4: 1444 | G4: 36.8 | H4: 1.2 | I4: 1354.24 | J4: 1.44
A5: 4 | B5: 45 | C5: 31 | D5: 1395 | E5: 2025 | F5: 961 | G5: 33.4 | H5: -2.4 | I5: 1115.56 | J5: 5.76
A6: 5 | B6: 35 | C6: 25 | D6: 875 | E6: 1225 | F6: 625 | G6: 26.6 | H6: -1.6 | I6: 707.56 | J6: 2.56
A7: 合計 | B7: =SUM(B2:B6) -> 200 | C7: =SUM(C2:C6) -> 150 | D7: 6170 | E7: 8250 | F7: 4630 | G7: =SUM(G2:G6) -> 150 | H7: =SUM(H2:H6) -> 7.105427358e-15 | I7: =SUM(I2:I6) -> 4615.6 | J7: =SUM(J2:J6) -> 14.4
A8: 平均 | B8: =B7/5 -> 40 | C8: =C7/5 -> 30
G9: （↑$E$12+$E$11*Bｎ） | H9: （↑C2-G2） | I9: （↑Cn^2） | J9: （↑Hn^2）
A10: （２）準備 | D10: （３）推定量
A11: Sxｙ＝ | B11: =D7-5*B8*C8 -> 170 | C11: （D7-5*B8*C8） | D11: a_h(予測値） | E11: =B11/B12 -> 0.68 | F11: （B11/B12）
A12: Sxx＝ | B12: =E7-5*B8^2 -> 250 | C12: （E7-5*B8^2） | D12: ｂ_h(予測値） | E12: =C8-E11*B8 -> 2.8 | F12: （B11/B12）C8-E11*B8）
A13: Syy= | B13: =F7-5*C8^2 -> 130 | C13: （F7-5*C8＾２）
